fUST/lending_fUST_20251017
["ID","MTS","AMOUNT","RATE_DAILY","PERIOD"]
[391541967,1760641838342,-522.69126331,0.00040795,2]
[391541968,1760641838352,-929.22891255,0.00040795,2]
[391541969,1760641838361,-1451.92017585,0.00040795,2]
[391541970,1760641838373,-2088.67428817,0.00040795,2]
[391541971,1760641838383,-193.0,0.00041,90]
[391541972,1760641838393,-1097.0,0.00041108,5]
[391541973,1760641838403,-257.832464,0.00041262,10]
[391541974,1760641838414,-540.858232,0.00041262,10]
[391541975,1760641838424,-1999.0,0.00041807,120]
[391541976,1760641838435,-257.832464,0.00041808,5]
[391541977,1760641838448,-540.858232,0.00041808,5]
[391541978,1760641838457,-257.832464,0.00041846,60]
[391541979,1760641838467,-540.858232,0.00041846,60]
[391541980,1760641838476,-500.0,0.0004187,10]
[391541981,1760641838487,-342.61,0.00041988,10]
[391541982,1760641838497,-300.0,0.00041997,31]
[391541983,1760641838507,-267.68623713,0.00041997,31]
[391541984,1760641838516,-300.0,0.00041997,31]
[391541985,1760641838526,-500.0,0.00041997,31]
[391541986,1760641838536,-356.93753126,0.00041997,31]
[391541987,1760641838545,-154.43072813,0.00041997,31]
[391541988,1760641838555,-500.0,0.00041997,31]
[391541989,1760641838564,-239.52698256,0.00041997,2]
[391541990,1760641838574,-500.0,0.00041997,31]
[391541991,1760641838583,-500.0,0.00041997,31]
[391541992,1760641838593,-500.0,0.00041997,31]
[391541993,1760641838602,-500.0,0.00041997,31]
[391541994,1760641838612,-500.0,0.00041997,31]
[391541995,1760641838622,-500.0,0.00041997,31]
[391541996,1760641838632,-500.0,0.00041997,31]
[391541997,1760641838642,-500.0,0.00041997,31]
[391541998,1760641838652,-500.0,0.00041997,31]
[391541999,1760641838662,-637.75789214,0.00041997,31]
[391542000,1760641838671,-500.0,0.00041997,31]
[391542001,1760641838689,-500.0,0.00041997,31]
[391542002,1760641838702,-57516.3686706,0.00041998,3]
[391542003,1760641838712,-857.09682483,0.00041998,3]
[391542004,1760641838723,-1332.61720646,0.00042008,2]
[391542005,1760641838733,-1378.68543213,0.00042008,2]
[391542006,1760641838745,-864.0,0.00042086,90]
[391542007,1760641838756,-257.832464,0.0004216,15]
[391542008,1760641838767,-540.858232,0.0004216,15]
[391542009,1760641838776,-1000.0,0.00042238,2]
[391542010,1760641838787,-1000.0,0.00042238,2]
[391542011,1760641838796,-1000.0,0.00042238,2]
[391542012,1760641838807,-1000.0,0.00042238,2]
[391542013,1760641838817,-1000.0,0.00042238,2]
[391542014,1760641838827,-1000.0,0.00042238,2]
[391542015,1760641838837,-1000.0,0.00042238,2]
[391542016,1760641838848,-1000.0,0.00042238,2]
[391542017,1760641838858,-1000.0,0.00042238,2]
[391542018,1760641838868,-1000.0,0.00042238,2]
[391542019,1760641838880,-1000.0,0.00042238,2]
[391542020,1760641838891,-1000.0,0.00042238,2]
[391542021,1760641838901,-1000.0,0.00042238,2]
[391542022,1760641838910,-1000.0,0.00042238,2]
[391542023,1760641838921,-1000.0,0.00042238,2]
[391542024,1760641838930,-1000.0,0.00042238,2]
[391542025,1760641838941,-1000.0,0.00042238,2]
[391542026,1760641838951,-1000.0,0.00042238,2]
[391542027,1760641838962,-1000.0,0.00042238,2]
[391542028,1760641838971,-1000.0,0.00042238,2]
[391542029,1760641838981,-1000.0,0.00042238,2]
[391542030,1760641838993,-1000.0,0.00042238,2]
[391542031,1760641839003,-1000.0,0.00042238,2]
[391542032,1760641839013,-1000.0,0.00042238,2]
[391542033,1760641839023,-1000.0,0.00042238,2]
[391542034,1760641839032,-151.0,0.00042238,2]
[391542035,1760641839042,-1000.0,0.00042238,2]
[391542036,1760641839051,-1000.0,0.00042238,2]
[391542037,1760641839061,-151.0,0.00042238,2]
[391542038,1760641839070,-1000.0,0.00042238,2]
[391542039,1760641839080,-1000.0,0.00042238,2]
[391542040,1760641839089,-1000.0,0.00042238,2]
[391542041,1760641839099,-151.0,0.00042238,2]
[391542042,1760641839108,-1000.0,0.00042238,2]
[391542043,1760641839118,-1000.0,0.00042238,2]
[391542044,1760641839127,-151.0,0.00042238,2]
[391542045,1760641839137,-1000.0,0.00042238,2]
[391542046,1760641839147,-1000.0,0.00042238,2]
[391542047,1760641839158,-151.0,0.00042238,2]
[391542048,1760641839168,-1000.0,0.00042238,2]
[391542049,1760641839178,-1000.0,0.00042238,2]
[391542050,1760641839188,-151.0,0.00042238,2]
[391542051,1760641839197,-1000.0,0.00042238,2]
[391542052,1760641839208,-1000.0,0.00042238,2]
[391542053,1760641839218,-1000.0,0.00042238,2]
[391542054,1760641839228,-1098.2,0.00042238,2]
[391542055,1760641839244,-2618.96571557,0.00042238,2]
[391542056,1760641839255,-194.2754197,0.00042352,2]
[391542057,1760641839265,-1000.0,0.00042418,10]
[391542058,1760641839275,-434.0,0.00042538,7]
[391542059,1760641839286,-248.96632334,0.0004255,31]
[391542060,1760641839297,-506.98506756,0.0004255,31]
[391542061,1760641839309,-57516.3686706,0.00042551,3]
[391542062,1760641839320,-857.09682483,0.00042551,3]
[391542063,1760641839330,-434.0,0.00042561,2]
[391542064,1760641839341,-257.832464,0.00042576,2]
[391542065,1760641839351,-540.858232,0.00042576,2]
[391542066,1760641839362,-4789.2229811,0.00042685,2]
[391542067,1760641839375,-756.03,0.00042798,30]
[391542068,1760641839386,-541.78,0.00042808,30]
[391542069,1760641839396,-451.48,0.00042808,30]
[391542070,1760641839407,-376.24,0.00042808,30]
[391542071,1760641839417,-313.53,0.00042808,30]
[391542072,1760641839426,-261.28,0.00042808,30]
[391542073,1760641839436,-217.73,0.00042808,30]
[391542074,1760641839447,-181.44,0.00042808,30]
[391542075,1760641839457,-151.2,0.00042808,30]
[391542076,1760641839467,-1210.81524122,0.00042842,2]
[391542077,1760641839476,-30351.89002302,0.00042842,2]
[391542078,1760641839488,-971.1556971,0.00042893,4]
[391542079,1760641839498,-205.8700608,0.00042937,2]
[391542080,1760641839508,-370.56610943,0.00042937,2]
[391542081,1760641839517,-658.78419455,0.00042937,2]
[391542082,1760641839527,-1028.32095368,0.00042937,2]
[391542083,1760641839537,-311.53809896,0.00042937,2]
[391542084,1760641839547,-560.76857813,0.00042937,2]
[391542085,1760641839556,-996.92191668,0.00042937,2]
[391542086,1760641839566,-1557.69049482,0.00042937,2]
[391542087,1760641839576,-305.09990724,0.00042937,2]
[391542090,1760641839586,-319.59729191,0.00042937,2]
[391542092,1760641839596,-575.27512545,0.00042937,2]
[391542094,1760641839607,-1022.71133413,0.00042937,2]
[391542096,1760641839617,-1596.38847311,0.00042937,2]
[391542097,1760641839627,-252.12852133,0.00042937,2]
[391542099,1760641839637,-806.81126826,0.00042942,2]
[391542100,1760641839647,-1260.64260666,0.00042942,2]
[391542101,1760641839658,-1500.0,0.00042966,10]
[391542102,1760641839670,-57516.3686706,0.0004297,3]
[391542103,1760641839681,-857.09682483,0.0004297,3]
[391542105,1760641839691,-115032.737341,0.0004298,3]
[391542106,1760641839815,-1714.19364966,0.0004298,3]
[391542107,1760641839827,-1210.81524121,0.00042982,2]
[391542108,1760641839837,-1109.35283655,0.00042989,66]
[391542109,1760641839847,-100000.0,0.0004299,2]
[391542110,1760641839857,-1356.77837986,0.00043102,2]
[391542111,1760641839866,-800.0,0.00043103,14]
[391542112,1760641839876,-1210.81524121,0.00043121,2]
[391542113,1760641839885,-30351.890023,0.00043121,2]
[391542114,1760641839894,-193.0,0.00043151,90]
[391542116,1760641839904,-800.0,0.00043177,14]
[391542117,1760641839913,-1999.0,0.00043177,120]
[391542118,1760641839922,-800.0,0.0004326,14]
[391542119,1760641839931,-1210.81524121,0.00043261,2]
[391542120,1760641839940,-192.93927548,0.00043264,14]
[391542121,1760641839950,-177.64477798,0.00043269,19]
[391542122,1760641839959,-57516.3686706,0.00043324,3]
[391542123,1760641839968,-857.09682483,0.00043324,3]
[391542124,1760641839977,-6856.77459864,0.00043334,3]
[391542125,1760641839988,-151.0,0.00043344,120]
[391542126,1760641839997,-922.35288,0.00043344,120]
[391542127,1760641840007,-922.35288,0.00043344,120]
[391542128,1760641840016,-922.35288,0.00043344,120]
[391542129,1760641840026,-922.35288,0.00043344,120]
[391542130,1760641840035,-417.15472785,0.00043344,120]
[391542131,1760641840044,-151.0,0.00043344,120]
[391542132,1760641840056,-151.0,0.00043344,120]
[391542133,1760641840067,-169250.68388857,0.00043344,2]
[391542134,1760641840081,-23374.80469847,0.00043344,2]
[391542135,1760641840349,-88.00150454,0.00042937,2]
[391542136,1760641840361,-365.82983386,0.00042937,2]
[391542137,1760641840374,-712.03859767,0.00043344,2]
[391542138,1760641840384,-22366.43908906,0.00043344,2]
[391542169,1760641843465,-151.0,0.00043344,120]
[391542170,1760641843475,-154296.03372623,0.00043344,2]
[391542171,1760641843484,-857.09682483,0.00043369,3]
[391542172,1760641843498,-150.0,0.00043373,10]
[391542173,1760641843507,-150.0,0.00043373,10]
[391542174,1760641843516,-800.0,0.00043375,14]
[391542175,1760641843525,-9907.51895591,0.000434,2]
[391542176,1760641843534,-1210.81524121,0.000434,2]
[391542177,1760641843543,-30351.890023,0.000434,2]
[391542178,1760641843552,-857.09682483,0.00043424,3]
[391542179,1760641843561,-857.09682483,0.00043434,3]
[391542180,1760641843571,-24657.50485211,0.00043444,30]
[391542181,1760641843582,-814.7999997,0.00043444,30]
[391542193,1760641845840,-151.0,0.00043344,120]
[391542195,1760641845850,-151.0,0.00043344,120]
[391542198,1760641845860,-12891.55412618,0.00043444,30]
[391542202,1760641845892,-6807.71236288,0.00043444,30]
[391542215,1760641846003,-1178.68829621,0.00043444,30]
[391542217,1760641846013,-23135.16826292,0.00043444,30]
[391542219,1760641846022,-150.0,0.00043473,10]
[391542221,1760641846032,-857.09682483,0.0004348,3]
[391542223,1760641846041,-470.86,0.00043488,10]
[391542225,1760641846050,-1714.19364966,0.00043489,3]
[391542227,1760641846059,-981.0,0.00043491,2]
[391542229,1760641846068,-631.0,0.00043491,2]
[391542231,1760641846077,-2161.0,0.00043491,2]
[391542233,1760641846085,-151.0,0.00043498,120]
[391542235,1760641846094,-250.0,0.00043498,120]
[391542237,1760641846103,-151.0,0.00043498,120]
[391542239,1760641846113,-250.0,0.00043498,120]
[391542241,1760641846122,-250.0,0.00043498,120]
[391542243,1760641846131,-162.38071901,0.00043498,120]
[391542245,1760641846140,-151.0,0.00043498,120]
[391542247,1760641846149,-250.0,0.00043498,120]
[391542249,1760641846158,-151.0,0.00043498,120]
[391542251,1760641846167,-250.0,0.00043498,120]
[391542253,1760641846176,-151.0,0.00043498,120]
[391542255,1760641846185,-250.0,0.00043498,120]
[391542257,1760641846194,-250.0,0.00043498,120]
[391542259,1760641846203,-250.0,0.00043498,120]
[391542261,1760641846212,-212.33504386,0.00043498,120]
[391542263,1760641846221,-250.0,0.00043498,120]
[391542265,1760641846230,-250.0,0.00043498,120]
[391542266,1760641846239,-250.0,0.00043498,120]
[391542268,1760641846252,-250.0,0.00043498,120]
[391542270,1760641846261,-250.0,0.00043498,120]
[391542272,1760641846271,-250.0,0.00043498,120]
[391542274,1760641846280,-250.0,0.00043498,120]
[391542277,1760641846290,-849.7856449,0.00043498,120]
[391542279,1760641846302,-1720.1510156,0.00043498,120]
[391542281,1760641846313,-9241.19167479,0.00043498,120]
[391542283,1760641846325,-1629.83970099,0.00043498,120]
[391542286,1760641846336,-3859.03196372,0.00043498,120]
[391542288,1760641846346,-151.0,0.00043498,120]
[391542290,1760641846355,-250.0,0.00043498,120]
[391542292,1760641846364,-250.0,0.00043498,120]
[391542294,1760641846379,-17940.1,0.00043498,120]
[391542295,1760641846388,-250.0,0.00043498,120]
[391542297,1760641846398,-151.0,0.00043498,120]
[391542299,1760641846407,-250.0,0.00043498,120]
[391542301,1760641846418,-18603.8837,0.00043498,120]
[391542304,1760641846429,-250.0,0.00043498,120]
[391542306,1760641846439,-250.0,0.00043498,120]
[391542308,1760641846448,-151.0,0.00043498,120]
[391542309,1760641846457,-19292.2273969,0.00043498,120]
[391542312,1760641846468,-250.0,0.00043498,120]
[391542314,1760641846477,-250.0,0.00043498,120]
[391542316,1760641846487,-151.0,0.00043498,120]
[391542317,1760641846500,-250.0,0.00043498,120]
[391542320,1760641846510,-250.0,0.00043498,120]
[391542322,1760641846519,-151.0,0.00043498,120]
[391542324,1760641846529,-250.0,0.00043498,120]
[391542326,1760641846539,-20006.03981059,0.00043498,120]
[391542328,1760641846548,-250.0,0.00043498,120]
[391542330,1760641846558,-250.0,0.00043498,120]
[391542332,1760641846568,-151.0,0.00043498,120]
[391542334,1760641846577,-250.0,0.00043498,120]
[391542336,1760641846588,-20746.26328358,0.00043498,120]
[391542338,1760641846597,-250.0,0.00043498,120]
[391542340,1760641846606,-250.0,0.00043498,120]
[391542342,1760641846616,-250.0,0.00043498,120]
[391542344,1760641846625,-151.0,0.00043498,120]
[391542346,1760641846635,-2565.45384521,0.00043498,120]
[391542417,1760641868152,417.15472785,0.00024,3]
[391542418,1760641878692,417.15472785,0.00024,7]
[391542419,1760641879641,417.15472785,0.00024,3]
[391542420,1760641966540,402.59971063,0.0003,2]
[391542421,1760641976981,101.37130699,0.00031845,120]
[391542422,1760641985612,790.07342562,0.0003,2]
[391542424,1760642060984,150.0,0.00025205,2]
[391542425,1760642061392,172.5,0.00025805,2]
[391542426,1760642061774,195.0,0.00026405,2]
[391542427,1760642062162,217.5,0.00027005,2]
[391542428,1760642062532,240.0,0.00027605,2]
[391542429,1760642062946,262.5,0.00028205,2]
[391542430,1760642063323,285.0,0.00028805,2]
[391542431,1760642063725,307.5,0.00029405,2]
[391542433,1760642417588,417.15472785,0.00029,2]
[391542434,1760642441739,417.15472785,0.00025,10]
[391542435,1760642442236,417.15472785,0.00024,7]
[391542436,1760642443496,151.21272606,0.0002994,2]
[391542437,1760642445086,417.15472785,0.00025,10]
[391542438,1760642445641,417.15472785,0.00024,7]
[391542439,1760642558622,189.24108052,0.0003,2]
[391542440,1760642562226,5000.0,0.0003,2]
[391542448,1760642678605,150.0,0.00025205,2]
[391542449,1760642679563,172.5,0.00025805,2]
[391542450,1760642679954,195.0,0.00026405,2]
[391542451,1760642680567,217.5,0.00027005,2]
[391542452,1760642680955,240.0,0.00027605,2]
[391542453,1760642681362,262.5,0.00028205,2]
[391542454,1760642681735,285.0,0.00028805,2]
[391542455,1760642682127,307.5,0.00029405,2]
[391542460,1760642736134,-330.0,0.00030005,2]
[391542461,1760642736158,-151.92,0.00030298,15]
[391542462,1760642736182,-151.92,0.00030398,15]
[391542463,1760642736207,-151.92,0.00030498,15]
[391542464,1760642736232,-141.06044284,0.00030598,15]
[391542465,1760642742927,417.15472785,0.00029,2]
[391542470,1760642777705,743.78255417,0.0003,2]
[391542471,1760642777733,4256.21744583,0.0003,2]
[391542472,1760642778162,417.15472785,0.00025,10]
[391542473,1760642778797,417.15472785,0.00024,7]
[391542474,1760642786631,417.15472785,0.00025,10]
[391542475,1760642799198,417.15472785,0.00025,10]
[391542476,1760642800090,3404.23958708,0.0003,2]
[391542479,1760642846090,-10.85955716,0.00030598,15]
[391542480,1760642846112,-352.5,0.00030605,2]
[391542481,1760642846134,-151.92,0.00030698,15]
[391542482,1760642846156,-151.95,0.00030798,15]
[391542483,1760642846181,-375.0,0.00031205,2]
[391542484,1760642846202,-179.65864857,0.00031315,7]
[391542485,1760642846225,-255.325733,0.00031511,60]
[391542486,1760642846245,-255.325733,0.00031576,20]
[391542487,1760642846264,-171.675034,0.00031778,60]
[391542488,1760642846285,-397.5,0.00031805,2]
[391542489,1760642846307,-887.02140736,0.00031845,120]
[391542490,1760642846329,-326.0,0.00031899,3]
[391542491,1760642846350,-175.38030048,0.000319,2]
[391542492,1760642846372,-541.28227731,0.000319,2]
[391542493,1760642846392,-162.92617451,0.000319,2]
[391542494,1760642846414,-255.325733,0.00032,10]
[391542495,1760642846434,-400.0,0.00032192,2]
[391542496,1760642846454,-541.28227731,0.000322,2]
[391542497,1760642846473,-420.0,0.00032405,2]
[391542498,1760642846495,-541.28227731,0.000325,2]
[391542499,1760642846515,-541.28227731,0.000328,2]
[391542500,1760642846534,-500.0,0.00032967,5]
[391542501,1760642846559,-442.5,0.00033005,2]
[391542502,1760642846582,-541.28227731,0.000332,2]
[391542503,1760642846603,-255.325733,0.00033444,2]
[391542504,1760642846627,-300.0,0.00033455,30]
[391542505,1760642846654,-300.0,0.00033455,30]
[391542506,1760642846677,-300.0,0.00033455,30]
[391542507,1760642846701,-300.0,0.00033455,30]
[391542508,1760642846723,-300.0,0.00033455,30]
[391542509,1760642846748,-214.23979927,0.00033455,30]
[391542510,1760642862938,670.93405569,0.0003,2]
[391542511,1760642863081,10000.01,0.0003,2]
[391542512,1760642863103,10000.01,0.0003,2]
[391542513,1760642863127,10000.01,0.0003,2]
[391542514,1760642863149,10000.01,0.0003,2]
[391542516,1760642863171,10000.01,0.0003,2]
[391542517,1760642863194,10000.01,0.0003,2]
[391542518,1760642863219,10000.01,0.0003,2]
[391542519,1760642863242,10000.01,0.0003,2]
[391542520,1760642863264,9398.23839351,0.0003,2]
[391542521,1760642875071,601.77160649,0.000299,5]
[391542522,1760642875093,217.3818411,0.000299,5]
[391542523,1760642885424,3829.74361819,0.0003,2]
[391542525,1760642895373,5952.88454071,0.000298,120]
[391542526,1760642895394,2291.71908225,0.000298,120]
[391542527,1760642901578,273.93004396,0.00021,2]
[391542530,1760642911302,6673.81573376,0.00029,120]
[391542531,1760642912566,260.05789957,0.0002,30]
[391542533,1760642915440,500.48724046,0.00022,2]
[391542534,1760642915461,10000.01,0.00022,2]
[391542535,1760642915483,10000.01,0.00022,2]
[391542536,1760642915504,10000.01,0.00022,2]
[391542537,1760642915524,3499.48275954,0.00022,2]
[391542539,1760642915997,6500.52724046,0.00025,30]
[391542540,1760642916021,10000.01,0.00025,30]
[391542541,1760642916044,10000.01,0.00025,30]
[391542542,1760642916066,10000.01,0.00025,30]
[391542543,1760642916088,10000.01,0.00025,30]
[391542544,1760642916109,499.43275954,0.00025,30]
[391542547,1760642917896,9500.57724046,0.000298,10]
[391542548,1760642917923,499.42275954,0.000298,10]
[391542551,1760642920052,10000.01,0.00025,30]
[391542552,1760642920076,4999.99,0.00025,30]
[391542555,1760642922484,150.999999,0.00025,5]
[391542558,1760642923145,204.92982463,0.00021,2]
[391542559,1760642923886,168.59,0.00024,14]
[391542560,1760642925438,400.0,0.0002,30]
[391542561,1760642926082,250.76646661,0.00024,30]
[391542562,1760642929739,3332.56927827,0.0003,2]
[391542591,1760642994893,2138.56197936,0.0003,2]
[391542641,1760643035789,-3655.47770501,0.000308,2]
[391542642,1760643035799,-400.0,0.00030999,2]
[391542643,1760643035809,-400.0,0.00030999,2]
[391542644,1760643035818,-400.0,0.00030999,2]
[391542645,1760643035827,-367.0,0.00030999,2]
[391542646,1760643035837,-5.32960666,0.00030999,2]
[391542647,1760643035849,-1594.67039334,0.00030999,2]
[391542648,1760643035859,-280.72960656,0.00031,7]
[391542667,1760643037792,-9677.09301695,0.00031,7]
[391542668,1760643037803,-9094.60237661,0.00031,7]
[391542669,1760643037814,-3596.56130031,0.00031,7]
[391542670,1760643037849,-18563.58800673,0.00031,7]
[391542671,1760643037858,-167.46532234,0.00031215,2]
[391542672,1760643037867,-179.65865214,0.00031315,7]
[391542673,1760643037878,-178.97,0.00031609,2]
[391542674,1760643037887,-300.0,0.00031619,30]
[391542675,1760643037895,-300.0,0.00031619,30]
[391542676,1760643037905,-300.0,0.00031619,30]
[391542677,1760643037914,-300.0,0.00031619,30]
[391542678,1760643037922,-300.0,0.00031619,30]
[391542679,1760643037931,-300.0,0.00031619,30]
[391542680,1760643037939,-300.0,0.00031619,30]
[391542681,1760643037948,-300.0,0.00031619,30]
[391542682,1760643037958,-300.0,0.00031619,30]
[391542683,1760643037969,-300.0,0.00031619,30]
[391542684,1760643037978,-300.0,0.00031619,30]
[391542685,1760643037988,-300.0,0.00031619,30]
[391542686,1760643037997,-300.0,0.00031619,30]
[391542687,1760643038006,-300.0,0.00031619,30]
[391542688,1760643038016,-300.0,0.00031619,30]
[391542689,1760643038025,-296.21482302,0.000319,2]
[391542690,1760643038035,-296.21482302,0.000322,2]
[391542691,1760643038045,-600.0,0.0003225,30]
[391542692,1760643038055,-296.21482302,0.000325,2]
[391542693,1760643038065,-296.21482302,0.000328,2]
[391542694,1760643038075,-17628.19805,0.00032918,3]
[391542695,1760643038084,-13729.98143335,0.00033,30]
[391542696,1760643038094,-541.78,0.00033008,3]
[391542697,1760643038102,-270.89,0.00033008,3]
[391542698,1760643038112,-812.7,0.00033008,3]
[391542699,1760643038122,-392.38,0.00033008,10]
[391542700,1760643038130,-1999.0,0.00033016,120]
[391542701,1760643038140,-800.4747066,0.00033016,2]
[391542702,1760643038150,-500.0,0.00033017,7]
[391542703,1760643038158,-500.0,0.00033017,2]
[391542704,1760643038168,-293.08421024,0.00033017,7]
[391542705,1760643038178,-248.96632334,0.00033017,7]
[391542706,1760643038188,-506.98506756,0.00033017,7]
[391542707,1760643038197,-203.32846528,0.00033018,2]
[391542708,1760643038207,-129251.58354728,0.00033018,20]
[391542709,1760643038218,-475.15459922,0.00033018,2]
[391542710,1760643038228,-471.82143073,0.00033018,60]
[391542711,1760643038237,-905.86043976,0.00033018,2]
[391542712,1760643038246,-7903.0,0.00033018,30]
[391542713,1760643038256,-757.03740008,0.00033018,60]
[391542714,1760643038265,-7014.57826319,0.00033018,30]
[391542715,1760643038274,-17316.67269848,0.00033018,120]
[391542716,1760643038283,-10010.42997549,0.00033018,5]
[391542717,1760643038293,-3081.01260286,0.00033018,30]
[391542718,1760643038302,-4018.25092158,0.00033018,60]
[391542719,1760643038310,-1054.45340942,0.00033018,2]
[391542720,1760643038319,-1438.33,0.000331,2]
[391542721,1760643038329,-1084.15,0.000331,14]
[391542722,1760643038338,-160.0,0.00033106,2]
[391542723,1760643038347,-296.21482302,0.000332,2]
[391542724,1760643038356,-560.0,0.00033376,2]
[391542725,1760643038365,-433.65731204,0.00033515,5]
[391542726,1760643038373,-465.0,0.00033605,2]
[391542727,1760643038382,-255.325733,0.00033638,5]
[391542728,1760643038391,-260.0,0.00033654,2]
[391542729,1760643038401,-500.0,0.000338,5]
[391542730,1760643038411,-360.0,0.00034202,2]
[391542731,1760643038421,-487.5,0.00034205,2]
[391542732,1760643038430,-1000.0,0.00034348,5]
[391542733,1760643038440,-1083.56,0.00034378,3]
[391542734,1760643038451,-541.78,0.00034378,3]
[391542735,1760643038461,-1999.0,0.00034386,120]
[391542736,1760643038475,-300.0,0.0003475,2]
[391542737,1760643038485,-13658.1658484,0.00034953,2]
[391542738,1760643038496,-4023.37690007,0.00035,20]
[391542739,1760643038505,-421.2072482,0.00035,60]
[391542740,1760643038515,-720.0,0.00035475,30]
[391542741,1760643038525,-1999.0,0.00035756,120]
[391542742,1760643038535,-1655.68752098,0.00035916,2]
[391542743,1760643038544,-783.0,0.00035934,2]
[391542744,1760643038554,-24917.05740653,0.00036,30]
[391542745,1760643038564,-591.52779861,0.00036016,2]
[391542746,1760643038574,-918.30099917,0.00036016,2]
[391542747,1760643038583,-255.325733,0.00036182,20]
[391542748,1760643038593,-152.448971,0.00036182,20]
[391542749,1760643038603,-255.325733,0.00036472,60]
[391542750,1760643038613,-152.448971,0.00036472,60]
[391542751,1760643038622,-255.325733,0.00036779,10]
[391542752,1760643038632,-152.448971,0.00036779,10]
[391542753,1760643038643,-3110.36,0.00036808,2]
[391542754,1760643038653,-1999.0,0.00037126,120]
[391542755,1760643038663,-1438.33,0.000372,2]
[391542756,1760643038672,-1084.15,0.000372,14]
[391542757,1760643038681,-1655.68752098,0.00037662,2]
[391542758,1760643038695,-255.325733,0.00037728,5]
[391542759,1760643038705,-152.448971,0.00037728,5]
[391542760,1760643038719,-1013.80930367,0.000378,2]
[391542761,1760643038731,-1303.93990079,0.00038,30]
[391542762,1760643038741,-298.93393723,0.00038001,2]
[391542763,1760643038752,-660.0,0.00038214,7]
[391542764,1760643038762,-255.325733,0.00038241,2]
[391542765,1760643038774,-152.448971,0.00038241,2]
[391542766,1760643038787,-500.0,0.00038241,2]
[391542767,1760643038798,-151.0,0.00038241,2]
[391542768,1760643038808,-500.0,0.00038296,2]
[391542769,1760643038818,-151.0,0.00038296,2]
[391542770,1760643038827,-389.0,0.00038351,2]
[391542771,1760643038837,-198.0,0.00038351,2]
[391542772,1760643038847,-1999.0,0.00038496,120]
[391542773,1760643038857,-9954.5470823,0.00038649,30]
[391542774,1760643038867,-255.325733,0.0003868,15]
[391542775,1760643038877,-1097.0,0.00038689,5]
[391542776,1760643038887,-5633.62,0.000387,120]
[391542777,1760643038896,-785.95860573,0.00038711,2]
[391542778,1760643038906,-353.0,0.0003886,2]
[391542779,1760643038917,-9845.08981922,0.0003888,30]
[391542780,1760643038926,-353.0,0.00038896,2]
[391542781,1760643038936,-100000.0,0.0003899,2]
[391542782,1760643038946,-34394.20612798,0.00039,60]
[391542783,1760643038956,-864.0,0.00039023,90]
[391542784,1760643038971,-538.08108701,0.0003913,2]
[391542785,1760643038981,-353.0,0.00039345,7]
[391542786,1760643038991,-1655.68752098,0.00039408,2]
[391542787,1760643039000,-353.0,0.00039697,2]
[391542788,1760643039011,-168.0,0.00039784,7]
[391542789,1760643039021,-1999.0,0.00039866,120]
[391542790,1760643039031,-820.17229884,0.0004,120]
[391542791,1760643039041,-52555.239999,0.0004,30]
[391542792,1760643039051,-169.77992554,0.0004,60]
[391542793,1760643039061,-1438.33,0.0004,2]
[391542794,1760643039071,-1084.15,0.0004,14]
[391542795,1760643039080,-956.58859912,0.00040259,2]
[391542796,1760643039090,-151.0,0.000403,10]
[391542797,1760643039100,-1000.0,0.00040381,2]